{"text_format":"1","workbook":"xlsx","n_sheets":1,"sheets":["Ясень"],"not_rendered":{"charts":0,"images":0,"macros":1,"external_links":0,"defined_names":6,"comments":0,"pivot_tables":0},"unopened":[],"bounds":{"document_bytes":16777216,"sheet_cells":100000,"rows_first":2000,"rows_last":500,"rows_between":2000,"halvings":0,"cell_chars":16384,"cell_head_chars":4096},"cells_cut":0,"cells_raw":0,"read":"whole","date_system":"1900"}

{"sheet":"Ясень","index":0,"n_rows":65,"n_cols":27,"rows_kept":65,"cut":false,"hidden":false,"merged":[[2,15,2,25],[2,0,2,11],[67,1,67,10]]}
[]
["текущие остатки",{"$f":"TODAY()","v":"2024-07-25"}]
["ЯСЕНЬ",null,null,null,null,null,null,null,null,null,null,null,null,null,null,"ПРИХОД / РАСХОД"]
["ПРОФИЛЬ","0,450","0,650","0,750","0,950","1,400","1,600","3",null,null,null,"в метрах",null,null,"ПРОФИЛЬ","0,450","0,650","0,750","0,950","1,400","1,600","3",null,null,null,"в метрах"]
["Алиери",50,2,1,1,2,12,1,null,null,null,{"$f":"$B$4*B5+$C$4*C5+$D$4*D5+$E$4*E5+$F$4*F5+$G$4*G5+$H$4*H5+$I$4*I5+$K$4*K5+$J$4*J5","v":50.5},"м",null,"Алиери",2,null,null,null,null,null,null,null,null,null,{"$f":"$B$4*P5+$C$4*Q5+$D$4*R5+$E$4*S5+$F$4*T5+$G$4*U5+$H$4*V5+$I$4*W5+$K$4*Y5+$J$4*X5","v":0.9},"м"]
["Алиери (Усеч.)",null,null,null,null,null,null,null,null,null,null,0,"м",null,"Алиери (Усеч.)",null,null,null,null,null,null,null,null,null,null,0,"м"]
["Анталия ",null,null,1,null,null,null,2,null,null,null,6.75,"м",null,"Анталия ",null,null,null,null,null,null,null,null,null,null,0,"м"]
["Асти",1,2,null,null,null,2,null,null,null,null,4.95,"м",null,"Асти",null,null,null,null,null,null,null,null,null,null,0,"м"]
["Афина",null,null,null,null,null,null,null,null,null,null,0,"м",null,"Афина",null,null,null,null,null,null,null,null,null,null,0,"м"]
["Бергамо",null,null,null,null,null,null,null,null,null,null,0,"м",null,"Бергамо",null,null,null,null,null,null,null,null,null,null,0,"м"]
["Бергонец",null,null,null,null,null,null,null,null,null,null,0,"м",null,"Бергонец",null,null,null,null,null,null,null,null,null,null,0,"м"]
["Берлин",null,null,null,null,null,null,null,null,null,null,0,"м",null,"Берлин",null,null,null,null,null,null,null,null,null,null,0,"м"]
["Берта",null,null,1,null,null,1,null,2,null,null,2.35,"м",null,"Берта",null,null,null,null,null,null,null,null,null,null,0,"м"]
["Бостон",null,null,null,null,null,null,null,null,null,null,0,"м",null,"Бостон",null,null,null,null,null,null,null,null,null,null,0,"м"]
["Венетто",null,null,null,null,null,null,null,null,null,null,0,"м",null,"Венетто",null,null,null,null,null,null,null,null,null,null,0,"м"]
["Верона 2",null,null,2,null,null,null,null,null,null,null,1.5,"м",null,"Верона 2",null,null,null,null,null,null,null,null,null,null,0,"м"]
["Гальяно",null,null,null,null,null,null,null,null,null,null,0,"м",null,"Гальяно",null,null,null,null,null,null,null,null,null,null,0,"м"]
["Гальяно (Усеч.)",null,null,null,null,null,4,null,null,null,null,6.4,"м",null,"Гальяно (Усеч.)",null,null,null,null,null,null,null,null,null,null,0,"м"]
["Диона",null,null,null,null,null,null,null,null,null,null,0,"м",null,"Диона",null,null,null,null,null,null,null,null,null,null,0,"м"]
["Доломита",null,null,null,null,null,null,null,null,null,null,0,"м",null,"Доломита",null,null,null,null,null,null,null,null,null,null,0,"м"]
["Доломита (Без узора)",null,4,null,null,34,null,null,null,null,null,50.199999999999996,"м",null,"Доломита (Без узора)",null,null,null,null,null,null,null,null,null,null,0,"м"]
["Донателла",null,null,null,null,null,null,null,null,null,null,0,"м",null,"Донателла",null,null,null,null,null,null,null,null,null,null,0,"м"]
["Инфинити",null,null,null,null,null,null,null,null,null,null,0,"м",null,"Инфинити",null,null,null,null,null,null,null,null,null,null,0,"м"]
["Калабрия",null,null,4,null,null,null,4,null,null,null,15,"м",null,"Калабрия",null,null,null,null,null,null,null,null,null,null,0,"м"]
["Кальяри",null,null,null,null,null,null,null,null,null,null,0,"м",null,"Кальяри",null,null,null,null,null,null,null,null,null,null,0,"м"]
["Катарина",null,null,null,null,null,null,null,null,null,null,0,"м",null,"Катарина",null,null,null,null,null,null,null,null,null,null,0,"м"]
["Комо",null,null,null,null,null,null,null,null,null,null,0,"м",null,"Комо",null,null,null,null,null,null,null,null,null,null,0,"м"]
["Леонардо",null,null,null,null,null,null,null,null,null,null,0,"м",null,"Леонардо",null,null,null,null,null,null,null,null,null,null,0,"м"]
["Лондон",null,null,null,null,null,null,null,null,null,null,0,"м",null,"Лондон",null,null,null,null,null,null,null,null,null,null,0,"м"]
["Луизиана",null,null,null,null,null,null,null,null,null,null,0,"м",null,"Луизиана",null,null,null,null,null,null,null,null,null,null,0,"м"]
["Лукреция",null,null,null,null,null,null,null,null,null,null,0,"м",null,"Лукреция",null,null,null,null,null,null,null,null,null,null,0,"м"]
["Мадрид",null,null,null,null,null,null,null,null,null,null,0,"м",null,"Мадрид",null,null,null,null,null,null,null,null,null,null,0,"м"]
["Манчестер",null,null,null,null,null,null,null,null,null,null,0,"м",null,"Манчестер",null,null,null,null,null,null,null,null,null,null,0,"м"]
["Милан",null,null,null,null,null,null,null,null,null,null,0,"м",null,"Милан",null,null,null,null,null,null,null,null,null,null,0,"м"]
["Мирано",null,null,null,null,null,null,null,null,null,null,0,"м",null,"Мирано",null,null,null,null,null,null,null,null,null,null,0,"м"]
["Модерн",null,null,null,null,null,null,null,null,null,null,0,"м",null,"Модерн",null,null,null,null,null,null,null,null,null,null,0,"м"]
["Модерн 60",null,null,null,null,null,null,null,null,null,null,{"$f":"$B$4*B37+$C$4*C37+$D$4*D37+$E$4*E37+$F$4*F37+$G$4*G37+$H$4*H37+$I$4*I37+$K$4*K37+$J$4*J37","v":0},"м",null,"Модерн 60",null,null,null,null,null,null,null,null,null,null,{"$f":"$B$4*P37+$C$4*Q37+$D$4*R37+$E$4*S37+$F$4*T37+$G$4*U37+$H$4*V37+$I$4*W37+$K$4*Y37+$J$4*X37","v":0},"м"]
["Монте-Бьянка",null,null,null,null,null,null,null,null,null,null,0,"м",null,"Монте-Бьянка",null,null,null,null,null,null,null,null,null,null,0,"м"]
["Наполи",null,null,null,null,null,null,null,null,null,null,0,"м",null,"Наполи",null,null,null,null,null,null,null,null,null,null,0,"м"]
["Нео-Берта",null,null,null,null,null,null,null,null,null,null,0,"м",null,"Нео-Берта",null,null,null,null,null,null,null,null,null,null,0,"м"]
["Ника",null,null,null,null,null,null,null,null,null,null,0,"м",null,"Ника",null,null,null,null,null,null,null,null,null,null,0,"м"]
["Ника-Аворио",null,null,null,null,null,null,null,null,null,null,0,"м",null,"Ника-Аворио",null,null,null,null,null,null,null,null,null,null,0,"м"]
["Одесса",null,null,null,null,null,null,null,null,null,null,0,"м",null,"Одесса",null,null,null,null,null,null,null,null,null,null,0,"м"]
["Олимп",null,null,null,null,null,null,null,null,null,null,0,"м",null,"Олимп",null,null,null,null,null,null,null,null,null,null,0,"м"]
["Орфей",null,null,null,null,null,null,null,null,null,null,0,"м",null,"Орфей",null,null,null,null,null,null,null,null,null,null,0,"м"]
["Париж",null,null,null,null,null,null,null,null,null,null,0,"м",null,"Париж",null,null,null,null,null,null,null,null,null,null,0,"м"]
["Патриция",null,null,null,null,null,null,null,null,null,null,0,"м",null,"Патриция",null,null,null,null,null,null,null,null,null,null,0,"м"]
["Персей",null,null,null,null,null,null,null,null,null,null,0,"м",null,"Персей",null,null,null,null,null,null,null,null,null,null,0,"м"]
["Петра",null,null,null,null,null,null,null,null,null,null,0,"м",null,"Петра",null,null,null,null,null,null,null,null,null,null,0,"м"]
["Профиль Новый",null,null,null,null,null,null,null,null,null,null,0,"м",null,"Профиль Новый",null,null,null,null,null,null,null,null,null,null,0,"м"]
["Римма",null,null,null,null,null,null,null,null,null,null,0,"м",null,"Римма",null,null,null,null,null,null,null,null,null,null,0,"м"]
["Роза",null,null,null,null,null,null,null,null,null,null,0,"м",null,"Роза",null,null,null,null,null,null,null,null,null,null,0,"м"]
["Сирена",null,null,null,null,null,null,null,null,null,null,0,"м",null,"Сирена",null,null,null,null,null,null,null,null,null,null,0,"м"]
["Скалли",null,null,null,null,null,null,null,null,null,null,0,"м",null,"Скалли",null,null,null,null,null,null,null,null,null,null,0,"м"]
["София",null,null,null,null,null,null,null,null,null,null,0,"м",null,"София",null,null,null,null,null,null,null,null,null,null,0,"м"]
["Тиффани",null,null,null,null,null,null,null,null,null,null,0,"м",null,"Тиффани",null,null,null,null,null,null,null,null,null,null,0,"м"]
["Торино",null,null,null,null,null,null,null,null,null,null,0,"м",null,"Торино",null,null,null,null,null,null,null,null,null,null,0,"м"]
["Уника (Вероника)",null,null,null,null,null,null,null,null,null,null,0,"м",null,"Уника (Вероника)",null,null,null,null,null,null,null,null,null,null,0,"м"]
["Фабиана",null,null,null,null,null,null,null,null,null,null,0,"м",null,"Фабиана",null,null,null,null,null,null,null,null,null,null,0,"м"]
["Чикаго",null,null,null,null,null,null,null,null,null,null,0,"м",null,"Чикаго",null,null,null,null,null,null,null,null,null,null,0,"м"]
["ЧМЗ",null,null,null,null,null,null,null,null,null,null,0,"м",null,"ЧМЗ",null,null,null,null,null,null,null,null,null,null,0,"м"]
[null,null,null,null,null,null,null,null,null,null,null,0,"м",null,null,null,null,null,null,null,null,null,null,null,null,0,"м"]
[null,null,null,null,null,null,null,null,null,null,null,0,"м",null,null,null,null,null,null,null,null,null,null,null,null,0,"м"]
[null,null,null,null,null,null,null,null,null,null,null,0,null,null,null,null,null,null,null,null,null,null,null,null,null,0]
[null,null,null,null,null,null,null,null,null,null,null,0,"м",null,null,null,null,null,null,null,null,null,null,null,null,0,"м"]